[Event "Cayman op"]
[Site "George Town CAY"]
[Date "2024.05.04"]
[Round "2"]
[White "Song, Michael"]
[Black "Tari, Aryan"]
[Result "0-1"]
[ECO "A50"]
[WhiteElo "2399"]
[BlackElo "2634"]
[PlyCount "36"]
[GameId "2129404697849519"]
[EventDate "2024.05.04"]
[EventType "swiss"]
[EventRounds "6"]
[EventCountry "CAY"]
[SourceTitle "10 Days #758"]
[Source "ChessMix "]
[SourceDate "2024.05.10"]
[SourceVersion "1"]
[SourceVersionDate "2024.05.10"]
[SourceQuality "1"]
[TimeControl "5400+30"]

1. d4 {[%emt 0:03:43]} Nf6 {[%emt 0:00:17]} 2. c4 {[%emt 0:00:57]} e6 {[%emt 0:00:22]} 3. Bf4 {[%emt 0:00:15]} d5 {[%emt 0:00:32]} 4. cxd5 {[%emt 0:00:37]} Nxd5 {[%emt 0:00:56]} 5. Bg3 {[%emt 0:00:12]} c5 {[%emt 0:01:12]} 6. e4 {[%emt 0:00:58]} Nf6 {[%emt 0:01:07]} 7. Nd2 {[%emt 0:00:29]} Qxd4 {[%emt 0:03:22]} 8. Ngf3 {[%emt 0:06:38]} Qd8 {[%emt 0:00:29]} 9. e5 {[%emt 0:07:02]} Nd5 {[%emt 0:01:48]} 10. a3 {[%emt 0:05:54]} Nc6 {[%emt 0:04:13]} 11. Rc1 {[%emt 0:02:10]} Nce7 {[%emt 0:31:25]} 12. Ne4 {[%emt 0:32:05]} Nf5 {[%emt 0:02:30]} 13. Nxc5 {[%emt 0:00:50]} Bxc5 {[%emt 0:13:11]} 14. Rxc5 {[%emt 0:00:20]} h5 {[%emt 0:03:47]} 15. Bd3 {[%emt 0:11:42]} h4 {[%emt 0:02:52]} 16. Bxf5 {[%emt 0:00:46]} hxg3 {[%emt 0:00:14]} 17. fxg3 {[%emt 0:03:30]} b6 {[%emt 0:02:51]} 18. Rc6 {[%emt 0:00:16]} Bd7 {[%emt 0:01:15]} 0-1

[Event "Cayman op"]
[Site "George Town CAY"]
[Date "2024.05.05"]
[Round "3"]
[White "Song, Michael"]
[Black "Budisavljevic, Luka"]
[Result "1-0"]
[ECO "C36"]
[WhiteElo "2399"]
[BlackElo "2476"]
[PlyCount "67"]
[GameId "2129404697849522"]
[EventDate "2024.05.04"]
[EventType "swiss"]
[EventRounds "6"]
[EventCountry "CAY"]
[SourceTitle "10 Days #758"]
[Source "ChessMix "]
[SourceDate "2024.05.10"]
[SourceVersion "1"]
[SourceVersionDate "2024.05.10"]
[SourceQuality "1"]
[TimeControl "5400+30"]

1. e4 {[%emt 0:09:52]} e5 {[%emt 0:00:44]} 2. f4 {[%emt 0:06:48]} d5 {[%emt 0:02:05]} 3. exd5 {[%emt 0:00:35]} exf4 {[%emt 0:00:19]} 4. Nf3 {[%emt 0:00:18]} Nf6 {[%emt 0:02:11]} 5. Bb5+ {[%emt 0:01:11]} c6 {[%emt 0:03:19]} 6. dxc6 {[%emt 0:00:15]} Nxc6 {[%emt 0:00:24]} 7. d4 {[%emt 0:00:51]} Bd6 {[%emt 0:02:24]} 8. O-O {[%emt 0:01:46]} O-O {[%emt 0:00:04]} 9. Nbd2 {[%emt 0:01:52]} h6 {[%emt 0:02:36]} 10. c3 {[%emt 0:15:16]} g5 {[%emt 0:03:20]} 11. Bd3 {[%emt 0:10:14]} Re8 {[%emt 0:00:23]} 12. Re1 {[%emt 0:02:06]} Bc7 {[%emt 0:08:50]} 13. Rxe8+ {[%emt 0:06:57]} Qxe8 {[%emt 0:00:39]} 14. Qe1 {[%emt 0:00:12]} Qf8 {[%emt 0:03:24]} 15. Ne4 {[%emt 0:01:52]} Nh7 {[%emt 0:05:46]} 16. b4 {[%emt 0:09:58]} Ne7 {[%emt 0:08:26]} 17. c4 {[%emt 0:02:45]} Nf5 {[%emt 0:02:47]} 18. Bb2 {[%emt 0:03:41]} Ne3 {[%emt 0:05:09]} 19. d5 {[%emt 0:03:44]} f6 {[%emt 0:00:43]} 20. c5 {[%emt 0:01:29]} Qf7 {[%emt 0:08:21]} 21. d6 {[%emt 0:00:28]} Bd8 {[%emt 0:00:00]} 22. Qc3 {[%emt 0:01:14]} a6 {[%emt 0:01:59]} 23. a4 {[%emt 0:02:39]} Be6 {[%emt 0:00:23]} 24. b5 {[%emt 0:01:06]} Nd5 {[%emt 0:04:58]} 25. Qd4 {[%emt 0:02:22]} g4 {[%emt 0:01:09]} 26. Nfd2 {[%emt 0:00:14]} axb5 {[%emt 0:00:31]} 27. axb5 {[%emt 0:00:06]} Rxa1+ {[%emt 0:00:32]} 28. Bxa1 {[%emt 0:00:02]} Ng5 {[%emt 0:00:43]} 29. Nxg5 {[%emt 0:04:11]} hxg5 {[%emt 0:00:01]} 30. Ne4 {[%emt 0:00:02]} Kf8 {[%emt 0:00:28]} 31. Nxg5 {[%emt 0:01:28]} fxg5 {[%emt 0:00:51]} 32. Qh8+ {[%emt 0:00:06]} Qg8 {[%emt 0:00:02]} 33. Qh6+ {[%emt 0:00:14]} Ke8 {[%emt 0:00:38]} 34. Bh7 {[%emt 0:00:13]} 1-0

[Event "Cayman op"]
[Site "George Town CAY"]
[Date "2024.05.05"]
[Round "4"]
[White "Young, Christopher"]
[Black "Song, Michael"]
[Result "0-1"]
[ECO "E60"]
[WhiteElo "1757"]
[BlackElo "2399"]
[PlyCount "41"]
[GameId "2129404697849528"]
[EventDate "2024.05.04"]
[EventType "swiss"]
[EventRounds "6"]
[EventCountry "CAY"]
[SourceTitle "10 Days #758"]
[Source "ChessMix "]
[SourceDate "2024.05.10"]
[SourceVersion "1"]
[SourceVersionDate "2024.05.10"]
[SourceQuality "1"]
[TimeControl "5400+30"]

1. d4 {[%emt 0:00:03]} f5 {[%emt 0:00:31]} 2. c4 {[%emt 0:00:19]} Nf6 {[%emt 0:00:37]} 3. Nf3 {[%emt 0:00:37]} g6 {[%emt 0:00:58]} 4. b3 {[%emt 0:03:06]} Bg7 {[%emt 0:00:28]} 5. Bb2 {[%emt 0:00:20]} O-O {[%emt 0:01:31]} 6. g3 {[%emt 0:00:22]} Ne4 {[%emt 0:12:10]} 7. Bg2 {[%emt 0:15:32]} c5 {[%emt 0:08:01]} 8. O-O {[%emt 0:00:47]} Nc6 {[%emt 0:00:19]} 9. e3 {[%emt 0:19:30]} d6 {[%emt 0:04:01]} 10. Nbd2 {[%emt 0:13:22]} Qa5 {[%emt 0:20:27]} 11. Nxe4 {[%emt 0:08:32]} fxe4 {[%emt 0:00:05]} 12. Ne1 {[%emt 0:02:18]} cxd4 {[%emt 0:00:07]} 13. exd4 {[%emt 0:01:04]} d5 {[%emt 0:05:35]} 14. Nc2 {[%emt 0:08:49]} e6 {[%emt 0:00:36]} 15. f3 {[%emt 0:07:46]} dxc4 {[%emt 0:03:09]} 16. bxc4 {[%emt 0:03:13]} e5 {[%emt 0:00:03]} 17. d5 {[%emt 0:08:32]} Qb6+ {[%emt 0:02:03]} 18. Kh1 {[%emt 0:00:11]} Qxb2 {[%emt 0:01:54]} 19. dxc6 {[%emt 0:01:28]} bxc6 {[%emt 0:01:08]} 20. fxe4 {[%emt 0:03:14]} Be6 {[%emt 0:00:58]} 21. Rxf8+ {[%emt 0:00:38]} 0-1

[Event "Cayman op"]
[Site "George Town CAY"]
[Date "2024.05.06"]
[Round "6"]
[White "Christiansen, Johan-Sebastian"]
[Black "Song, Michael"]
[Result "1-0"]
[ECO "C45"]
[WhiteElo "2651"]
[BlackElo "2399"]
[PlyCount "47"]
[GameId "2129404697849534"]
[EventDate "2024.05.04"]
[EventType "swiss"]
[EventRounds "6"]
[EventCountry "CAY"]
[SourceTitle "10 Days #758"]
[Source "ChessMix "]
[SourceDate "2024.05.10"]
[SourceVersion "1"]
[SourceVersionDate "2024.05.10"]
[SourceQuality "1"]
[TimeControl "5400+30"]

1. e4 {[%emt 0:00:05]} e5 {[%emt 0:04:45]} 2. Nf3 {[%emt 0:02:40]} Nc6 {[%emt 0:00:16]} 3. d4 {[%emt 0:01:24]} exd4 {[%emt 0:00:18]} 4. Nxd4 {[%emt 0:00:45]} Bb4+ {[%emt 0:03:58]} 5. c3 {[%emt 0:00:57]} Bc5 {[%emt 0:00:07]} 6. Be3 {[%emt 0:02:10]} Bb6 {[%emt 0:00:08]} 7. Nf5 {[%emt 0:01:48]} Bxe3 {[%emt 0:03:52]} 8. Nxe3 {[%emt 0:01:42]} d6 {[%emt 0:00:22]} 9. Bd3 {[%emt 0:04:49]} Nf6 {[%emt 0:06:42]} 10. O-O {[%emt 0:02:09]} O-O {[%emt 0:00:17]} 11. f4 {[%emt 0:01:19]} a5 {[%emt 0:13:15]} 12. Qf3 {[%emt 0:05:13]} Nd7 {[%emt 0:26:11]} 13. Nd2 {[%emt 0:02:44]} Nc5 {[%emt 0:00:08]} 14. Bc2 {[%emt 0:02:00]} Ne7 {[%emt 0:09:31]} 15. Rad1 {[%emt 0:11:42]} Bd7 {[%emt 0:08:07]} 16. f5 {[%emt 0:07:59]} Bb5 {[%emt 0:03:18]} 17. c4 {[%emt 0:06:08]} Bd7 {[%emt 0:02:12]} 18. e5 {[%emt 0:04:47]} dxe5 {[%emt 0:03:26]} 19. f6 {[%emt 0:01:39]} Ng6 {[%emt 0:00:03]} 20. Ne4 {[%emt 0:02:14]} Nxe4 {[%emt 0:01:10]} 21. Bxe4 {[%emt 0:00:19]} Ra6 {[%emt 0:01:28]} 22. fxg7 {[%emt 0:03:17]} Kxg7 {[%emt 0:00:01]} 23. Bf5 {[%emt 0:03:59]} Rd6 {[%emt 0:00:03]} 24. Rxd6 {[%emt 0:00:32]} 1-0